Cogmind - Beta 16.1 @@@ ROGUE MODE // 2026.03.21 @ 23:21:36 Player: TheSkyeDoctor Result: Destroyed by S-27 Virus with Autogun Performance ------------- Evolutions (5) 2500 Regions Visited (6) 1200 Robots Destroyed (26) 130 Value Destroyed (927) 927 Prototype IDs (1) 20 Alien Tech Used (0) 0 Bonus (85) 85 TOTAL SCORE: 4862 Bonus ------- Follower Combat Kills 85 Cogmind --------- Core Integrity 0/1000 Matter 282/300 Energy 98/100 System Corruption 6% Temperature Cool (0) Movement Core (50) Location -5/Upper Caves Parts ------- > --- POWER (1) -------- (None) > --- PROPULSION (3) --- (None) > --- UTILITY (10) ----- Machine Analyzer Terrain Scan Processor Targeting Computer Melee Analysis Suite Target Analyzer > --- WEAPON (3) ------- (None) > --- INVENTORY (5) ---- Improved Heat Sink Large Storage Unit Phase Gun Heavy Gauss Cannon Heavy Gauss Cannon Peak State ------------ > --- POWER ------------ Neutrino Core > --- PROPULSION ------- Wheel Wheel Compact Wheel > --- UTILITY ---------- Advanced Heat Sink Large Storage Unit Structural Scanner Trap Scanner Machine Analyzer Improved Terrain Scanner Terrain Scan Processor Seismic Detector Improved Kinecellerator Long-range Tractor Beam > --- WEAPON ----------- Heavy Gauss Cannon Molecular Deconstructor > --- INVENTORY -------- Ion Engine Light Nuclear Core Improved Heat Sink Medium Laser Phase Gun Phase Gun Beam Cannon Assault Rifle Slug Cannon Heavy Gauss Cannon [Rating: 68] Favorites ----------- Power Ion Engine Engine Ion Engine Power Core Neutrino Core Propulsion Wheel Wheel Wheel Utility Seismic Detector Device Seismic Detector Storage Large Storage Unit Processor Terrain Scan Processor Protection Medium Armor Plating Weapon Slug Cannon Energy Gun Medium Laser Energy Cannon Beam Cannon Ballistic Gun Hypervelocity Gauss Rifle Ballistic Cannon Slug Cannon Launcher Long-range Missile Launcher Special Weapon Molecular Deconstructor Slashing Weapon Ripper Build | -11 -10 -10 -7 -5 -5 -5 ------- Run | Yrd Mat Sub Scr Fac Upp Upp Slots Evolved 10 | . . . . 10 . . Power . | . . . . . . . Propulsion 1 | . . . . 1 . . Utility 8 | . . . . 8 . . Weapon 1 | . . . . 1 . . Parts Attached 38 | 7 2 . . 13 16 . Power 5 | 1 . . . . 4 . Engine 3 | 1 . . . . 2 . Core 2 | . . . . . 2 . Reactor . | . . . . . . . Propulsion 4 | 2 . . . 1 1 . Treads . | . . . . . . . Leg . | . . . . . . . Wheel 4 | 2 . . . 1 1 . Hover . | . . . . . . . Flight . | . . . . . . . Utility 19 | 2 1 . . 9 7 . Device 11 | 1 . . . 6 4 . Storage 2 | 1 1 . . . . . Processor 5 | . . . . 2 3 . Hackware . | . . . . . . . Protection 1 | . . . . 1 . . Artifact . | . . . . . . . Weapon 10 | 2 1 . . 3 4 . Energy Gun 1 | 1 . . . . . . Energy Cannon 2 | . 1 . . 1 . . Ballistic Gun 2 | 1 . . . 1 . . Ballistic Cannon 2 | . . . . 1 1 . Launcher 1 | . . . . . 1 . Special Weapon 1 | . . . . . 1 . Impact Weapon . | . . . . . . . Slashing Weapon 1 | . . . . . 1 . Piercing Weapon . | . . . . . . . Special Melee Weapon . | . . . . . . . Unidentified Prototypes 1 | . . . . . 1 . Parts Lost 24 | . . . . . 23 1 Power 4 | . . . . . 4 . Propulsion 4 | . . . . . 4 . Utility 11 | . . . . . 10 1 Weapon 5 | . . . . . 5 . Highest Loss Streak 8 | . . . . . 8 1 To Critical Strikes . | . . . . . . . Average Backups 6 | 1 5 7 11 5 6 5 Power . | . 1 1 1 1 1 . Propulsion . | . 2 2 2 1 . . Utility 1 | . 1 3 6 . 1 2 Weapon 2 | . . 1 2 3 3 3 Tool/Special . | . . . . . . . Unused Backups 4 | . . . . . 2 2 Power 1 | . . . . . 1 . Propulsion . | . . . . . . . Utility . | . . . . . . . Weapon 3 | . . . . . 1 2 Tool/Special . | . . . . . . . Average Slot Usage (%) 90 | . 100 100 100 96 88 34 Engine 6 | . 14 14 14 5 3 . Wheel 17 | . 28 28 28 17 14 . Device 27 | . 14 14 14 34 33 4 Storage 6 | . 14 14 14 5 4 . Processor 8 | . . . . 7 12 29 Protection 1 | . . . . 4 2 . Energy Cannon 5 | . 2 14 14 5 3 . Ballistic Gun 6 | . 14 14 14 5 3 . Ballistic Cannon 3 | . . . . 4 4 . Peak Build Rating 68 | 7 8 8 10 43 68 17 Average Rating 32 | 5 7 8 9 39 43 16 On Entrance 13 | . 7 8 8 10 43 17 Avg Prop Armor Cover (%) . | . . . . . . . Naked Turns . | . . . . . . . Heaviest Build 68 | 15 31 31 31 59 68 1 Greatest Support 36 | 26 26 26 26 36 36 3 Greatest Overweight (x) 5 | . 1 1 1 1 5 . Average Overweight (x) . | . . 1 1 1 1 . Largest Inventory Capacity 15 | 8 15 15 15 15 15 5 Average Capacity 13 | 7 11 15 15 15 14 5 Most Carried 14 | 4 7 8 14 13 12 5 Average Carried 6 | 1 5 7 11 5 6 5 Final Capacity 15 | 8 15 15 15 15 5 5 Final Carried 14 | 4 7 8 14 6 5 5 Class Distribution -------------------- 63% | Scavenger-Skirmisher 30% | Mutant 5% | Scavenger-Mutant Dominant Class ---------------- Mutant | -10/Materials Mutant | -10/Subcaves Mutant | -7/Scraptown Scavenger-Skirmisher | -5/Factory Scavenger-Skirmisher | -5/Upper Caves Scavenger-Mutant | -5/Upper Caves Resources | -11 -10 -10 -7 -5 -5 -5 ----------- Run | Yrd Mat Sub Scr Fac Upp Upp Matter Collected 1081 | 309 19 39 . 140 574 . Remotely 86 | . . . . . 86 . Salvage Created 787 | 124 11 112 . . 540 . Parts 56 | 8 3 9 . . 36 . Haulers Intercepted . | . . . . . . . Recyclers Shooed 1 | 1 . . . . . . Parts Field Recycled . | . . . . . . . Retrieved Matter . | . . . . . . . Parts Self-Destructed 46 | . . 7 . . 39 . Prevented . | . . . . . . . Parts Restored . | . . . . . . . Kills | -11 -10 -10 -7 -5 -5 -5 ------- Run | Yrd Mat Sub Scr Fac Upp Upp Combat Hostiles Destroyed 22 | . . 5 . . 17 . Melee 1 | . . . . . 1 . Guns 7 | . . 3 . . 4 . Cannons 9 | . . 2 . . 7 . AOE 3 | . . . . . 3 . Classes Destroyed 10 | 2 1 2 . . 5 . Builder 1 | . 1 . . . . . Tunneler 2 | 2 . . . . . . Recycler 1 | 1 . . . . . . Swarmer 10 | . . 4 . . 6 . Grunt 4 | . . . . . 4 . Duelist 1 | . . . . . 1 . Specialist 1 | . . . . . 1 . Hunter 3 | . . . . . 3 . Programmer 2 | . . . . . 2 . Subdweller 1 | . . 1 . . . . Best Kill Streak 5 | 2 1 4 . . 5 . Combat Bots Only 5 | . . 4 . . 5 . Max Kills in Single Turn 3 | 1 1 2 . . 3 . Gunslinging . | . . . . . . . Exploded 3 | . . . . . 3 . Melee 1 | . . . . . 1 . Uniques/NPCs Destroyed . | . . . . . . . Combat | -11 -10 -10 -7 -5 -5 -5 -------- Run | Yrd Mat Sub Scr Fac Upp Upp Hostile Shots Fired 250 | . . 15 . . 198 37 Missed 84 | . . 6 . . 62 16 Hits 166 | . . 9 . . 136 21 Melee 3 | . . . . . 3 . Projectile 163 | . . 9 . . 133 21 Critical Strikes 5 | . . . . . 5 . Part Disruptions 2 | . . . . . 2 . Damage Taken 2682 | . . 73 . . 2299 310 Core 1012 | . . 7 . . 708 297 Absorbed by Shields . | . . . . . . . Core Remaining (%) 98 | 100 . . 97 . . . Volleys Fired 61 | 13 3 5 . 5 35 . Largest 3 | 2 2 2 . 3 3 . Hottest 153 | 70 70 80 . 153 153 . Shots Fired 138 | 26 6 10 1 15 80 . Gun 61 | 26 6 5 1 5 18 . Cannon 63 | . . 5 . 10 48 . Launcher 5 | . . . . . 5 . Special 9 | . . . . . 9 . Kinetic 81 | 13 3 5 1 10 49 . Thermal 43 | 13 3 5 . 5 17 . Explosive 5 | . . . . . 5 . Electromagnetic . | . . . . . . . Robot Hit Streak 6 | 4 5 5 . . 6 . Robot Miss Streak 6 | 6 1 1 . . 3 . Penetration Max 1 | . . . . . 1 . Secondary Targets . | . . . . . . . Shots Hit Robots 73 | 13 4 6 . . 50 . Core Hits 33 | 4 1 5 . . 23 . Critical Kills 5 | . . . . . 5 . Critical Parts Destroyed 5 | . . . . . 5 . Critical Strikes 12 | 1 . . . . 11 . Burn 1 | 1 . . . . . . Destroy 10 | . . . . . 10 . Blast 1 | . . . . . 1 . Melee Attacks 3 | . . . . . 3 . Impact . | . . . . . . . Slashing 3 | . . . . . 3 . Piercing . | . . . . . . . Sneak Attacks . | . . . . . . . Combat Hostiles . | . . . . . . . Follow-up Attacks . | . . . . . . . Damage Inflicted 1787 | 164 50 102 . . 1471 . Guns 360 | 164 50 49 . . 97 . Cannons 898 | . . 53 . . 845 . Explosions 453 | . . . . . 453 . Melee 76 | . . . . . 76 . Ramming . | . . . . . . . Kinetic 869 | 77 37 49 . . 706 . Thermal 389 | 87 13 53 . . 236 . Explosive 453 | . . . . . 453 . Electromagnetic . | . . . . . . . Impact . | . . . . . . . Slashing 76 | . . . . . 76 . Piercing . | . . . . . . . Highest Corruption 6 | . 4 4 4 . 6 6 Average Corruption 4 | . 2 4 4 . 3 6 Corruption Purged . | . . . . . . . Corruption Blocked . | . . . . . . . Effects 29 | . 2 3 15 . 5 4 Message Errors 3 | . 1 . 2 . . . Matter Fused 12 | . 1 2 3 . 3 3 Heat Flow Errors 5 | . . . 3 . 1 1 Energy Discharges 3 | . . . 2 . 1 . Data Loss (minor) 4 | . . . 4 . . . Misfires 1 | . . . 1 . . . Alerts 1 | . . 1 . . . . Overload Shots . | . . . . . . . Overflow Damage 95 | . . . . . 95 . Projectiles 71 | . . . . . 71 . Explosions 24 | . . . . . 24 . Melee . | . . . . . . . Knockbacks 5 | . . . . . 5 . Impact . | . . . . . . . Kinetic 5 | . . . . . 5 . Secondary . | . . . . . . . Self-Inflicted Damage 72 | . . . . . 72 . Shots 2 | . . . . . 2 . Rammed . | . . . . . . . Targets Rammed . | . . . . . . . Kicked . | . . . . . . . Crushed . | . . . . . . . Highest Temperature 158 | 90 18 . 158 45 63 51 Average Temperature 36 | 38 9 . 77 22 9 51 Received Heat Transfer 297 | . . 18 . . 270 9 Siege Activations . | . . . . . . . Martial Activations . | . . . . . . . Shielding Activations . | . . . . . . . Robots Disrupted . | . . . . . . . Combat Hostiles . | . . . . . . . Robots Corrupted . | . . . . . . . Combat Hostiles . | . . . . . . . Parts Fried . | . . . . . . . Impact Corruptions . | . . . . . . . Robots Melted . | . . . . . . . Combat Hostiles . | . . . . . . . Parts Melted . | . . . . . . . Heat Transferred 940 | 333 37 111 . . 459 . Parts Sabotaged . | . . . . . . . Parts Stolen . | . . . . . . . Parts Stripped . | . . . . . . . Power Chain Reactions . | . . . . . . . Alert | -11 -10 -10 -7 -5 -5 -5 ------- Run | Yrd Mat Sub Scr Fac Upp Upp Maximum Alert Level . | . . . . . . . Low Security (%) 100 | 100 100 . . 100 . . Level 1 . | . . . . . . . Level 2 . | . . . . . . . Level 3 . | . . . . . . . Level 4 . | . . . . . . . Level 5 . | . . . . . . . High Security . | . . . . . . . Max Security . | . . . . . . . Peak Influence 5 | 5 5 . . 4 . . Initial . | . . . . . . . Average . | 1 . . . . . . Influence Increases 686 | 15 5 110 . 4 507 45 Destroy 0b10 Robot/C 460 | . . 80 . . 380 . Destroy 0b10 Robot/NC 20 | 15 5 . . . . . Destroy Leader 40 | . . . . . 40 . Allied During Kill 12 | . . . . . 12 . Destroy Structure 4 | . . . . 4 . . Lose Combat Pursuer 150 | . . 30 . . 75 45 Influence Decreases 681 | 15 5 80 30 4 479 68 Entered New Map 36 | . . . 30 . . 6 Time Decay 440 | 15 5 80 . 4 284 52 Lost Part 185 | . . . . . 175 10 Lost Ally 20 | . . . . . 20 . Squads Dispatched 2 | . 1 . . 1 . . Investigation . | . . . . . . . Extermination 1 | . . . . 1 . . Reinforcement 1 | . 1 . . . . . Assault . | . . . . . . . Garrison . | . . . . . . . Intercept . | . . . . . . . Searches Triggered . | . . . . . . . Construction Impeded . | . . . . . . . Haulers Reinforced . | . . . . . . . Active Scanning Responses . | . . . . . . . Cargo Convoy Interrupts . | . . . . . . . Stealth | -11 -10 -10 -7 -5 -5 -5 --------- Run | Yrd Mat Sub Scr Fac Upp Upp Distress Signals 1 | . 1 . . . . . Communications Jammed . | . . . . . . . Distress Signals . | . . . . . . . Times Spotted 45 | . 6 7 . . 24 8 Peak Tracking Total 6 | . 3 6 . . 5 5 Tactical Retreats 7 | . . 1 . . 5 1 Traps | -11 -10 -10 -7 -5 -5 -5 ------- Run | Yrd Mat Sub Scr Fac Upp Upp Traps Triggered 2 | . 2 . . . . . Indirectly . | . . . . . . . Trap Hack Attempts . | . . . . . . . Triggered . | . . . . . . . Disarmed . | . . . . . . . Reprogrammed . | . . . . . . . Reused . | . . . . . . . Traps Extracted . | . . . . . . . Installed . | . . . . . . . Triggered . | . . . . . . . Machines | -11 -10 -10 -7 -5 -5 -5 ---------- Run | Yrd Mat Sub Scr Fac Upp Upp Machines Disabled 1 | . . . . . 1 . Max in Single Turn 1 | . . . . . 1 . Machines Repaired . | . . . . . . . Machines Dismantled . | . . . . . . . Machines Sabotaged . | . . . . . . . Overloaded Fab Kills . | . . . . . . . Hacking | -11 -10 -10 -7 -5 -5 -5 --------- Run | Yrd Mat Sub Scr Fac Upp Upp Machines Accessed 4 | . . . . 1 3 . Terminals . | . . . . . . . Fabricators . | . . . . . . . Repair Stations . | . . . . . . . Recycling Units . | . . . . . . . Scanalyzers 1 | . . . . 1 . . Garrison Access . | . . . . . . . Total Hacks 7 | . . . . 2 5 . Successful 6 | . . . . 1 5 . Failed 1 | . . . . 1 . . Catastrophic . | . . . . . . . Database Lockouts . | . . . . . . . Manual 1 | . . . . . 1 . Terminals . | . . . . . . . Fabricators . | . . . . . . . Repair Stations . | . . . . . . . Recycling Units . | . . . . . . . Scanalyzers 2 | . . . . 2 . . Garrison Access . | . . . . . . . Terminal Hacks 5 | . . . . . 5 . Record 3 | . . . . . 3 . Open Door 2 | . . . . . 2 . Fabricator Hacks . | . . . . . . . Repair Station Hacks . | . . . . . . . Recycling Unit Hacks . | . . . . . . . Scanalyzer 1 | . . . . 1 . . Retrieve Study 1 | . . . . 1 . . Garrison Access Hacks . | . . . . . . . Unauthorized Hacks . | . . . . . . . Terminals . | . . . . . . . Fabricators . | . . . . . . . Repair Stations . | . . . . . . . Recycling Units . | . . . . . . . Scanalyzers . | . . . . . . . Garrison Access . | . . . . . . . Data Cores Recovered . | . . . . . . . Used . | . . . . . . . Hacking Detections 1 | . . . . 1 . . Full Trace Events . | . . . . . . . Feedback Events . | . . . . . . . Feedback Blocked . | . . . . . . . Robot Schematics Acquired . | . . . . . . . Robots Built . | . . . . . . . Authchips . | . . . . . . . Time . | . . . . . . . Total Robot Build Rating . | . . . . . . . Part Schematics Acquired . | . . . . . . . Parts Built . | . . . . . . . Authchips . | . . . . . . . Time . | . . . . . . . Total Part Build Rating . | . . . . . . . Part Studies Acquired 1 | . . . . 1 . . Parts Repaired . | . . . . . . . Time . | . . . . . . . Parts Recycled . | . . . . . . . Recycled Matter . | . . . . . . . Retrieved Matter . | . . . . . . . Retrieved Components . | . . . . . . . Parts Scanalyzed . | . . . . . . . Part Schematics Acquired . | . . . . . . . Parts Damaged . | . . . . . . . Bothacking | -11 -10 -10 -7 -5 -5 -5 ------------ Run | Yrd Mat Sub Scr Fac Upp Upp Used RIF Installer . | . . . . . . . Robots Hacked . | . . . . . . . Non-combat . | . . . . . . . Combat . | . . . . . . . Robot Hacks Applied . | . . . . . . . Relay Couplers Released . | . . . . . . . Fabnet Peak Effective % . | . . . . . . . Robots Rewired . | . . . . . . . Allies Hacked . | . . . . . . . Hacks Repelled . | . . . . . . . Allies | -11 -10 -10 -7 -5 -5 -5 -------- Run | Yrd Mat Sub Scr Fac Upp Upp Total Allies 2 | . . . . . 2 . Largest Group 2 | . . . . . 2 . Highest-Rated Group 56 | . . . . . 56 . Highest-Rated Ally 31 | . . . . . 31 . Total Orders . | . . . . . . . Ally Attacks 12 | . . . . . 12 . Total Damage 167 | . . . . . 167 . Kills 2 | . . . . . 2 . Allies Corrupted . | . . . . . . . Allies Melted . | . . . . . . . Intel | -11 -10 -10 -7 -5 -5 -5 ------- Run | Yrd Mat Sub Scr Fac Upp Upp Active Infowar (turns) 3601 | 37 158 266 470 584 1964 122 Terrain 2356 | . . . . 579 1777 . Structural 2362 | . . . . 581 1781 . Traps 2506 | . . . . 580 1926 . Seismic 3186 | 37 158 266 470 584 1671 . Machine Analysis 2392 | . . . . 306 1964 122 Cloaking 48 | . . . . . 48 . Robot Analysis Total . | . . . . . . . Derelict Logs Recovered 2 | . . 1 . . 1 . Drone Launches . | . . . . . . . Drone Recoveries . | . . . . . . . Exploration | -11 -10 -10 -7 -5 -5 -5 ------------- Run | Yrd Mat Sub Scr Fac Upp Upp Turns Passed 3692 | 128 158 266 470 584 1964 122 Spaces Moved 2942 | 83 147 229 442 200 1597 244 Core 462 | 1 . . . . 217 244 Treads . | . . . . . . . Legs . | . . . . . . . Wheels 2480 | 82 147 229 442 200 1380 . Hover . | . . . . . . . Flight . | . . . . . . . Fastest Speed 50 | 50 90 105 105 101 50 50 Average Speed 95 | 90 97 105 105 101 98 50 Slowest Speed 250 | 100 105 105 105 101 250 50 Overloaded Moves . | . . . . . . . Propulsion Burnouts . | . . . . . . . Robots Hopped . | . . . . . . . Potential Cave-ins . | . . . . . . . Cave-ins Triggered . | . . . . . . . Exploration Rate (%) 31 | 4 28 17 42 4 98 29 Regions Visited 6 Branch Regions 4 Pre-discovered Areas 1 | . . . . . 1 . Known Exits Taken . | . . . . . . . Unknown Exits Taken 6 | 1 1 1 1 1 1 . Scrap Searched 4 | . . . . . 4 . Spaces Dug 2 | . . . . 2 . . Terrain Destroyed 93 | . . . . 3 90 . Melee . | . . . . . . . Projectile 13 | . . . . 3 10 . AOE 80 | . . . . . 80 . Terrain Rammed . | . . . . . . . Walls Destroyed . | . . . . . . . Machines Disabled . | . . . . . . . Actions | -11 -10 -10 -7 -5 -5 -5 --------- Run | Yrd Mat Sub Scr Fac Upp Upp Total 3666 | 106 155 244 447 568 1902 244 Wait 595 | . . 10 . 351 234 . Move 2936 | 82 146 228 441 199 1596 244 Hop . | . . . . . . . Pick Up 20 | 4 3 1 6 . 6 . Fast Attach 19 | 7 . . . 1 11 . Attach 14 | . . . . 9 5 . Detach 4 | . . . . . 4 . Swap 6 | . 2 . . 3 1 . Drop 8 | . 1 . . . 7 . Fire 61 | 13 3 5 . 5 35 . Melee 3 | . . . . . 3 . Ram . | . . . . . . . Kick . | . . . . . . . Crush . | . . . . . . . Escape Stasis . | . . . . . . . Rewire . | . . . . . . . Trap . | . . . . . . . Miscellaneous . | . . . . . . . Route ------- -11/Scrapyard -10/Materials (discovered 2 exits: [*Mat] / [*Sub]) -10/Subcaves (discovered 2 exits: [*Mat] / [*Scr]) -7/Scraptown -5/Factory -5/Upper Caves -5/Upper Caves History --------- Turn | Location | Event 16 | -11/Scrapyard | Discovered new exit (range 15) 129 | -11/Scrapyard | Entered Materials 130 | -10/Materials | Met a group of wandering Federalists 198 | -10/Materials | Discovered new exit (range 12) 285 | -10/Materials | Discovered new exit (range 3) 287 | -10/Materials | Entered Subcaves 287 | -10/Subcaves | Accompanied by 1 ally 288 | -10/Subcaves | Continued accompanying wandering Federalists (3) 288 | -10/Subcaves | Approached by a straggling Scientist 316 | -10/Subcaves | Build established: Mutant 405 | -10/Subcaves | A swath of the cavern ceiling suddenly collapsed 475 | -10/Subcaves | Discovered new exit (range 12) 477 | -10/Subcaves | Learned Materials terminal intel 539 | -10/Subcaves | Wandering Federalist uncovered a shortcut to Scraptown 553 | -10/Subcaves | Entered Scraptown 724 | -7/Scraptown | Discovered new exit (range 13) 734 | -7/Scraptown | Heard Great Nut preacher, LISTEN AND RECITE! 783 | -7/Scraptown | Visited Supply Room 1023 | -7/Scraptown | Entered Factory 1023 | -5/Factory | Evolved 10 slots: Propulsion x1, Utility x8, Weapon x1 1270 | -5/Factory | Discovered new exit (range 15) 1322 | -5/Factory | Build established: Scavenger-Skirmisher 1607 | -5/Factory | Entered Upper Caves 1608 | -5/Upper Caves | Encountered a Warlord checkpoint 2250 | -5/Upper Caves | Lost 3 parts (1p1u1w) 2571 | -5/Upper Caves | Entered an active Warlord outpost 2575 | -5/Upper Caves | A Commander dispatched an escort 2592 | -5/Upper Caves | Learned Factory terminal intel 2834 | -5/Upper Caves | Attracted the attention of an 0b10 checkpoint 2990 | -5/Upper Caves | Acquired the password to a Derelict Tinkerer's latest research 3000 | -5/Upper Caves | Found Prototype Special Weapon 3020 | -5/Upper Caves | Identified Molecular Deconstructor 3194 | -5/Upper Caves | Caught by Unaware searching for contraband prototypes 3204 | -5/Upper Caves | Learned Factory emergency access door positions 3246 | -5/Upper Caves | Caught by Unaware searching for contraband prototypes 3339 | -5/Upper Caves | Lost 3 parts (2n1u) 3429 | -5/Upper Caves | Lost 8 parts (1p1n4u2w) 3514 | -5/Upper Caves | Core integrity fell below 50% 3567 | -5/Upper Caves | Discovered new exit (range 9) 3571 | -5/Upper Caves | Entered another Upper Caves area 3580 | -5/Upper Caves | Lost 4 parts (2p1u1w) 3656 | -5/Upper Caves | Spotted B-75 Beast 3671 | -5/Upper Caves | Core integrity fell below 20% 3693 | -5/Upper Caves | Destroyed by S-27 Virus with Autogun Last Messages --------------- repair. 03539_ Acquired Targeting Computer. 03540_ Slug penetrates Wall. 03546_ Acquired 10 matter. 03546_ Penetrated by Slug. 03548_ Acquired Mic. Fission Core. 03549_ Flexi-carbon Leg fries itself beyond repair. 03549_ Mic. Fission Core destroyed. 03549_ Ripper destroyed. 03550_ Phase Shifter fries itself beyond repair. 03552_ Penetrated by Slug. 03567_ EXIT=FOUND LOCATION=UNKNOWN GOAL=ESCAPE 03586_ System corrupted: Heat flow error (+105). 03629_ System corrupted: Matter fused (-7). 03648_ System corrupted: Matter fused (-9). 03670_ System corrupted: Matter fused (-7). 03672_ Imp. Heat Sink destroyed. Map ----- +----------------------------------------------------+ | ?????????????????????????????????????????????????? | | ?????????????????????????????????????????????????? | | ?????????????????????????????????????????????????? | | ?????????????????????????????????????????????????? | | ?????????????????????????????????????????????????? | | ?????????????????????????????????????????????????? | | ?????????????????????????????????????????????????? | | ?????????????????????????????????????????????????? | | ?????????????????????????????????????????????????? | | ?????????????????????????????????????????????????? | | ??????????????????????????## ???????????????????? | | ?????????????????????????? ???????????????????? | | ?????????????????????????? ???? ????????????? | | ?????????????????????????? ???? ???????????? | | ?????????????????????????? ???? ???????????? | | ?????????????????????????? ???? #???????????? | | ?????????????????????????? ???? #???????????? | | ??????????????????????????# #???? ##??????????? | | ??????????????????????????# #???? #??????????? | | ??????????????????????????# #???? #??????????# | | ??????????????????????????# #???? ???????????# | | ??????????????????????????# #????# ############# | | ??????????????????????????# #????# # | | ?????????????## ??????????# #?#### # ########## | | ?????????? ##### ### # #????????# | | ?????????? @ # #???????# | | ?????????? ## s ## ##???? | | ????????????????????## ###### s## ###?# # | | ?????????????????????###?????## s s #?# ? | | ??????????????????????????????# ## ?? | | ??????????????????????????????# ### #?? | | ??????????????????????????????## #?## ??? | | ???????????????????????????????### #?#???? | | ?????????????????????????????????## #????? | | ??????????????????????????????????# #????? | | ?????????????????????????????????? #????? | | ?????????????????????????????????# ###### | | ?????????????????????????????????## ### | | ??????????????????????????????????# ### | | ???????????????????????????????#### ###### | | ???????????????????????????????? #??## | | ????????????????????????????????? #??# | | ?????????????????????????????????? ??# | | ??????????????????????????????????# ???# | | ???????????????????????????????????# ???# | | ????????????????????????????????????# ???# | | ????????????????????????????????????# ??## | | ???????????????????????????????????## ### | | ????????????????????????????????#### ## | | ????????????????????????????????# ###### | +----------------------------------------------------+ Best States ------------- Heat Dissipation 59 Energy Generation 19 Energy Capacity 315 Matter Stores 300 Matter Capacity 300 Sight Range 16 Terrain Scan Range 16 Terrain Scan Density 85 Cloak Strength 3 Armor Coverage 225 Phase Shifting 5 Evasion (%) 50 Targeting Accuracy 5 Melee Accuracy 5 Target Analysis 5 Kinecelleration 40 Item Schematics ----------------- None Robot Schematics ------------------ None Fabricated ------------ Nothing Repaired ---------- Nothing Studied --------- Ion Engine | -5/Factory | Hacked Alien Tech Used ----------------- None Achievements -------------- Infodabbler Challenges ------------ None Game ------ Seed LegPortableDetector Manual? 0 Play Time 00:24:17 Cumulative 75.5 hours Start 2026.03.21 @ 22:57:33 End 2026.03.21 @ 23:21:36 Sessions 1 Manual Loads 0 Difficulty Rogue Special Mode None Game No. 174 Rogue 174 Adventurer 0 Explorer 0 Win Type - Total 0 Types 0/0/0/0/0/0/0/0/0/0 Lore% 39 Gallery% 45 Achievement% 35 Wizard Run 0 Options --------- Layout 2 ASCII 0 Keyboard 1 Movement Arrows Keybinds 0 Fullscreen 1 Font 24/Smallcaps Map View 50x44 Zoom Use 0% Tactical HUD 1 Map Filters NONE Filters NONE Steam 1 RUN: e1dd4b77-b119-44ae-b082-f72a5d6e771f